fUSD/lending_fUSD_20240921
["ID","MTS","AMOUNT","RATE_DAILY","PERIOD"]
[338843160,1726936709940,250.0,0.00012003,2]
[338843161,1726936710786,150.0,0.00020281,120]
[338843162,1726936716299,162.29,0.00012025,2]
[338843163,1726936736300,250.0,0.00011946,2]
[338843164,1726936764659,200.0,0.00011919,2]
[338843165,1726936772710,150.0,0.00020206,120]
[338843166,1726936791897,191.47,0.00010959,2]
[338843167,1726936838449,478.18,0.00011918,2]
[338843168,1726936860118,456.27,0.00011918,2]
[338843169,1726936867612,472.2869914,0.00022,120]
[338843170,1726936912753,855.22,9.969e-05,2]
[338843171,1726937010768,150.0,0.00016985,120]
[338843172,1726937091818,150.0,0.00011766,2]
[338843173,1726937094816,156.42,0.00011786,2]
[338843174,1726937103286,150.0,0.00011688,2]
[338843175,1726937106161,150.0,0.00011688,2]
[338843176,1726937106499,150.0,0.00011904,2]
[338843177,1726937114984,150.0,0.00011688,2]
[338843178,1726937115347,150.0,0.00011832,2]
[338843179,1726937116139,150.0,0.00011976,2]
[338843180,1726937125214,194.63955812,0.00011688,2]
[338843181,1726937128672,150.0,0.00011688,2]
[338843182,1726937134108,150.00000001,0.00011688,2]
[338843183,1726937197118,233.87,0.00011787,2]
[338843184,1726937200755,2000.0,0.00011787,2]
[338843185,1726937209481,1155.52,0.00011787,2]
[338843186,1726937228894,250.0,0.00011813,2]
[338843187,1726937247424,182.5995416,0.00012021,2]
[338843188,1726937248474,459.53,0.00011746,2]
[338843189,1726937250735,150.0,0.00018933,120]
[338843190,1726937274494,313.43,0.00011831,2]
[338843191,1726937281253,172.16,0.00011752,2]
[338843192,1726937313334,250.0,0.00011785,2]
[338843193,1726937341125,802.28,0.00011759,2]
[338843194,1726937386449,250.0,0.00011756,2]
[338843195,1726937391852,458.33,0.00011756,2]
[338843196,1726937394107,200.0,0.00011756,2]
[338843197,1726937427676,229.12,0.00011764,2]
[338843211,1726937431988,-200.0,0.0001209,2]
[338843212,1726937431998,-150.0,0.00012121,2]
[338843213,1726937432007,-150.0,0.00012121,2]
[338843214,1726937432017,-800.0,0.00012191,2]
[338843215,1726937432029,-1947.2218158,0.00012191,2]
[338843216,1726937432040,-2807.56799259,0.00012191,2]
[338843217,1726937432052,-4949.97599785,0.00012191,2]
[338843218,1726937432064,-3377.03584135,0.00012191,2]
[338843219,1726937432075,-4207.88817068,0.00012191,2]
[338843220,1726937432101,-2500.0,0.00012191,2]
[338843221,1726937432112,-805.06664088,0.00012191,2]
[338843222,1726937432124,-4118.27119374,0.00012191,2]
[338843223,1726937432163,-468.35778133,0.00012191,2]
[338843224,1726937432221,-1174.76,0.00012191,2]
[338843225,1726937432232,-22843.85456578,0.00012191,2]
[338843226,1726937432241,-150.0,0.00012191,2]
[338843227,1726937432253,-150.0,0.00012192,2]
[338843228,1726937432262,-400.0,0.000122,4]
[338843229,1726937432272,-247.06014866,0.00012219,2]
[338843230,1726937432281,-855.22,0.00012233,2]
[338843231,1726937432291,-150.99,0.00012233,2]
[338843232,1726937432300,-150.0,0.00012265,2]
[338843233,1726937432310,-10378.04,0.00012265,2]
[338843234,1726937432320,-800.0,0.000123,4]
[338843235,1726937432330,-885.9,0.000123,2]
[338843236,1726937432339,-150.0,0.00012337,2]
[338843237,1726937432349,-150.0,0.00012337,2]
[338843238,1726937432358,-254.1,0.00012337,2]
[338843239,1726937432367,-499.99,0.00012337,2]
[338843240,1726937432376,-193.12,0.00012339,2]
[338843241,1726937432385,-1200.0,0.000124,4]
[338843242,1726937432395,-150.0,0.00012409,2]
[338843243,1726937432404,-181.94,0.00012445,2]
[338843244,1726937432413,-1600.0,0.000125,4]
[338843245,1726937432423,-150.0,0.00012553,2]
[338843246,1726937432432,-150.0,0.00012553,2]
[338843247,1726937432441,-2000.0,0.000126,4]
[338843248,1726937432450,-150.0,0.00012698,2]
[338843249,1726937432460,-400.0,0.000127,4]
[338843250,1726937432469,-3116.0,0.00012741,2]
[338843251,1726937432479,-150.0,0.0001277,2]
[338843252,1726937432487,-214.2871,0.000128,2]
[338843253,1726937432497,-400.0,0.000128,4]
[338843254,1726937432508,-2542.53355041,0.000128,2]
[338843255,1726937432517,-150.0,0.00012842,2]
[338843256,1726937432526,-383.35699788,0.00012847,2]
[338843257,1726937432536,-150.23271,0.0001287,2]
[338843258,1726937432545,-297.9512,0.000129,2]
[338843259,1726937432555,-5241.4123,0.000129,2]
[338843260,1726937432564,-1168.1644,0.000129,2]
[338843261,1726937432573,-25172.0817,0.000129,2]
[338843262,1726937432582,-1391.9473,0.000129,2]
[338843263,1726937432591,-157.27815319,0.000129,2]
[338843264,1726937432600,-4483.762,0.000129,2]
[338843265,1726937432610,-922.26111859,0.000129,2]
[338843266,1726937432619,-1000.0,0.000129,2]
[338843267,1726937432628,-44383.0157,0.000129,2]
[338843268,1726937432637,-400.0,0.000129,4]
[338843269,1726937432646,-160.02005506,0.000129,2]
[338843270,1726937432656,-160.02005504,0.00012917,2]
[338843271,1726937432665,-160.02005504,0.00012933,2]
[338843272,1726937432674,-707.29272674,0.00012933,2]
[338843273,1726937432683,-7983.06023372,0.00012933,2]
[338843274,1726937432693,-221.93364426,0.00012933,2]
[338843275,1726937432704,-199.348606,0.00012973,2]
[338843276,1726937432714,-500.0,0.00012973,2]
[338843277,1726937432723,-422.44759378,0.00012973,2]
[338843278,1726937432732,-500.0,0.00012973,2]
[338843279,1726937432742,-1000.0,0.00012986,2]
[338843280,1726937432751,-287.84635417,0.00012986,2]
[338843281,1726937432760,-260.60373138,0.00012986,2]
[338843282,1726937432769,-258.07109402,0.00012986,2]
[338843283,1726937432781,-159.39020911,0.0001299,2]
[338843284,1726937432790,-151.63,0.0001299,2]
[338843285,1726937432799,-151.63,0.0001299,2]
[338843286,1726937432808,-151.63,0.0001299,2]
[338843287,1726937432818,-151.63,0.0001299,2]
[338843288,1726937432828,-500.0,0.00012999,2]
[338843289,1726937432838,-500.0,0.00012999,2]
[338843290,1726937432847,-500.0,0.00012999,2]
[338843291,1726937432856,-500.0,0.00012999,2]
[338843292,1726937432865,-500.0,0.00012999,2]
[338843293,1726937432874,-497.00779728,0.00012999,2]
[338843294,1726937432883,-1454.78980839,0.00012999,3]
[338843295,1726937432892,-3141.39597495,0.00013,2]
[338843296,1726937432901,-306283.07766415,0.00013,2]
[338843302,1726937438042,-284.7715908,0.00013,2]
[338843303,1726937438053,-884567.45685092,0.00013,2]
[338843304,1726937438063,-76120.82915611,0.00013,2]
[338843305,1726937438150,-5740.77834692,0.00013,2]
[338843306,1726937438206,-475.24399367,0.00013,2]
[338843307,1726937438217,-124941.58087239,0.00013,2]
[338843308,1726937438228,-500.0,0.00013,2]
[338843309,1726937438265,-69959.40566592,0.00013,2]
[338843310,1726937438276,-1003.07311994,0.00013,2]
[338843311,1726937438287,-29561.64748557,0.00013,2]
[338843312,1726937438299,-541.07256728,0.00013,2]
[338843313,1726937438310,-742.83609273,0.00013,2]
[338843314,1726937438321,-597.24,0.00013,2]
[338843315,1726937438333,-471.39155754,0.00013,2]
[338843316,1726937438372,-765.41975306,0.00013,2]
[338843317,1726937438383,-410.70213987,0.00013,2]
[338843318,1726937438394,-1523.97756194,0.00013,2]
[338843319,1726937438405,-22590.85096767,0.00013,2]
[338843320,1726937438417,-1893.1272692,0.00013,2]
[338843321,1726937438429,-659.75132017,0.00013,2]
[338843322,1726937438440,-612.18240239,0.00013,2]
[338843324,1726937438451,-1290.75108193,0.00013,2]
[338843325,1726937438462,-3962.55749776,0.00013,2]
[338843326,1726937438473,-3110.01716113,0.00013,2]
[338843327,1726937438484,-799.5914014,0.00013,2]
[338843328,1726937438496,-313.27,0.00013,2]
[338843330,1726937438508,-254.99999,0.00013,2]
[338843332,1726937438520,-888.51999758,0.00013,2]
[338843334,1726937438531,-56529.05701785,0.00013,2]
[338843336,1726937438543,-433.63162005,0.00013,2]
[338843338,1726937438554,-2757.58727979,0.00013,2]
[338843340,1726937438564,-8323.234,0.00013,2]
[338843354,1726937439955,-28332.41412583,0.00013,2]
[338843355,1726937440012,-318.29041278,0.00012933,2]
[338843356,1726937440021,-895.36655158,0.00013,2]
[338843357,1726937440033,-1864.77512759,0.00013,2]
[338843358,1726937440121,-255.42348,0.00013,2]
[338843359,1726937440133,-530.86535505,0.00013,2]
[338843360,1726937440178,-557509.55728749,0.00013,2]
[338843361,1726937440190,-31093.1616788,0.00013,2]
[338843658,1726937443038,-63230.57989503,0.00013,2]
[338843677,1726937443201,-411.7493109,0.00013,2]
[338843679,1726937443214,-2407.513137,0.00013,2]
[338843682,1726937443226,-400.30481951,0.00013,2]
[338843684,1726937443240,-500.0,0.00013,2]
[338843687,1726937443258,-1377.74172289,0.00013,2]
[338843688,1726937443272,-5350.19999999,0.00013,2]
[338843690,1726937443367,-4675.74706937,0.00013,2]
[338843691,1726937443382,-277.876872,0.00013,2]
[338843692,1726937443393,-1504.9844153,0.00013,2]
[338843695,1726937445951,-1529.65936875,0.00013,2]
[338843696,1726937446006,-2479.97084612,0.00013,2]
[338843697,1726937446017,-353.19206644,0.00013,2]
[338843698,1726937446029,-4666.27831828,0.00013,2]
[338843699,1726937446040,-717.12394233,0.00013,2]
[338843700,1726937446051,-39146.58677371,0.00013,2]
[338843701,1726937446062,-592.10190416,0.00013,2]
[338843702,1726937446229,-1741.01490028,0.00013,2]
[338843703,1726937446240,-5651.79132101,0.00013,2]
[338843704,1726937446251,-432.5,0.00013,2]
[338843705,1726937446263,-29035.62302348,0.00013,2]
[338843706,1726937446276,-1458.83968283,0.00013,2]
[338843707,1726937446290,-409.14193754,0.00013,2]
[338843708,1726937446302,-383.87296915,0.00013,2]
[338843709,1726937446313,-6882.92088896,0.00013,2]
[338843710,1726937446324,-3077.64182638,0.00013,2]
[338843711,1726937446342,-6172.81784563,0.00013,2]
[338843712,1726937446353,-295.25514135,0.00013,2]
[338843713,1726937446365,-1834.85362429,0.00013,2]
[338843714,1726937446376,-594.96858718,0.00013,2]
[338843715,1726937446465,807.38,0.00011656,2]
[338843716,1726937456262,20000.0,0.00012031,2]
[338843717,1726937490784,150.0,0.00020378,120]
[338843718,1726937550798,150.0,0.00021576,120]
[338843719,1726937614262,172.13,0.00010959,2]
[338843720,1726937670763,150.0,0.00015428,120]
[338843721,1726937705003,826.07999926,6.781e-05,7]
[338843722,1726937705035,2704.29599118,6.781e-05,7]
[338843723,1726937730792,150.0,0.00018217,120]
[338843724,1726937805180,150.0,0.00011576,2]
[338843725,1726937806471,250.0,0.00011576,2]
[338843726,1726937869790,250.0,0.00011549,2]
[338843727,1726937933644,250.0,0.00011524,2]
[338843728,1726937964675,172.03,0.00011557,2]
[338843729,1726937971493,150.0,0.00014827,120]
[338843730,1726938018203,344.26,0.00011583,2]
[338843731,1726938056678,200.0,0.00011589,2]
[338843732,1726938101095,23900.0,0.0001159,2]
[338843733,1726938115248,845.97,9.678e-05,2]
[338843734,1726938115468,845.97,0.00011941,2]
[338843735,1726938150795,150.0,0.00018006,120]
[338843736,1726938172223,156.42,0.00011595,2]
[338843737,1726938229387,150.0,0.00019,120]
[338843738,1726938230099,150.0,0.0002,120]
[338843739,1726938230425,150.0,0.00021,120]
[338843740,1726938230913,170.660501,0.00022,120]
[338843741,1726938248913,500.0,0.00011606,2]
[338843742,1726938258429,3630.77,0.00011705,2]
[338843743,1726938308469,357.93,0.0001161,2]
[338843744,1726938313760,780.51,0.00011722,2]
[338843745,1726938313988,780.51,0.00011725,2]
[338843746,1726938314383,780.51,0.00011728,2]
[338843747,1726938314437,780.51,0.00011731,2]
[338843748,1726938314682,780.51,0.00011734,2]
[338843749,1726938314893,780.51,0.00011737,2]
[338843750,1726938315125,780.51,0.0001174,2]
[338843751,1726938315338,780.51,0.00011744,2]
[338843752,1726938315546,780.51,0.00011747,2]
[338843753,1726938315772,780.51,0.0001175,2]
[338843754,1726938315984,780.51,0.00011753,2]
[338843755,1726938316234,780.51,0.00011756,2]
[338843756,1726938316444,780.51,0.00011759,2]
[338843757,1726938316673,780.51,0.00011762,2]
[338843758,1726938316899,780.51,0.00011765,2]
[338843759,1726938317111,780.51,0.00011768,2]
[338843760,1726938317302,780.51,0.00011771,2]
[338843761,1726938317497,780.51,0.00011774,2]
[338843762,1726938317910,780.51,0.00011778,2]
[338843763,1726938318123,780.51,0.00011781,2]
[338843764,1726938466914,176.44679914,0.00011968,2]
[338843765,1726938474803,253.4,0.0001178,2]
[338843766,1726938479294,250.0,0.0001178,2]
[338843767,1726938526943,150.0,0.00019,120]
[338843768,1726938527334,150.0,0.0002,120]
[338843769,1726938527815,150.0,0.00021,120]
[338843770,1726938528319,170.660501,0.00022,120]
[338843771,1726938533145,3260985.01531336,0.00022,120]
[338843772,1726938535500,171.6,0.00011782,2]
[338843773,1726938571113,-150.0,0.00012039,2]
[338843774,1726938571134,-250.0,0.00012039,2]
[338843775,1726938571154,-575.7,0.00012068,2]
[338843776,1726938571174,-250.0,0.00012089,2]
[338843777,1726938571194,-1.00683155,0.000121,2]
[338843778,1726938582582,3296529.36493562,0.00021,60]
[338843792,1726938632153,-784.3221489,0.000121,2]
[338843793,1726938632164,-633.39617763,0.000121,2]
[338843794,1726938632173,-271.96394405,0.000122,4]
[338843795,1726938632184,-128.03605595,0.000122,4]
[338843796,1726938632193,-800.0,0.000123,4]
[338843797,1726938632202,-196.63,0.00012352,2]
[338843798,1726938632211,-378.78365747,0.00012362,2]
[338843799,1726938632222,-3008.65903677,0.00012362,2]
[338843800,1726938632235,-2757.22887528,0.00012362,2]
[338843801,1726938632244,-300.0,0.00012362,2]
[338843802,1726938632253,-129.47459193,0.00012363,2]
[338843803,1726938632265,-870.52540807,0.00012363,2]
[338843804,1726938632275,-1689.48,0.00012397,2]
[338843805,1726938632284,-1200.0,0.000124,4]
[338843806,1726938632294,-176.44679914,0.000124,2]
[338843807,1726938632304,-167.13,0.00012445,2]
[338843808,1726938632313,-1700.0,0.000125,4]
[338843809,1726938632323,-2100.0,0.000126,4]
[338843810,1726938632332,-400.0,0.000127,4]
[338843811,1726938632342,-1249.999999,0.00012743,2]
[338843812,1726938632351,-499.99,0.00012743,2]
[338843813,1726938632361,-150.0,0.00012799,2]
[338843814,1726938632371,-1155.94270807,0.000128,2]
[338843815,1726938632383,-1255.12,0.000128,2]
[338843816,1726938632395,-1883.88159193,0.000128,2]
[338843817,1726938632404,-151.137,0.000128,2]
[338843818,1726938632414,-2526.42,0.000128,2]
[338843819,1726938632424,-6460.3544,0.000128,2]
[338843820,1726938632434,-4513.4936,0.000128,2]
[338843821,1726938632444,-4986.3405,0.000128,2]
[338843822,1726938632458,-172.8445,0.000128,2]
[338843823,1726938632467,-1909.6514,0.000128,2]
[338843824,1726938632477,-4048.86730462,0.000128,2]
[338843825,1726938632488,-400.0,0.000128,4]
[338843826,1726938632498,-150.0,0.00012832,2]
[338843827,1726938632508,-383.35699789,0.00012839,2]
[338843829,1726938632518,-1000.0,0.000129,2]
[338843830,1726938632528,-100000.0,0.000129,2]
[338843831,1726938632537,-15400.6063,0.000129,2]
[338843832,1726938632547,-1620.2565,0.000129,2]
[338843833,1726938632556,-155.92795312,0.000129,2]
[338843834,1726938632566,-400.0,0.000129,4]
[338843835,1726938632575,-1000.0,0.000129,2]
[338843836,1726938632585,-1089.1729,0.000129,2]
[338843837,1726938632594,-245000.0,0.000129,2]
[338843838,1726938632603,-1000.0,0.00012986,2]
[338843839,1726938632613,-152.6,0.0001299,2]
[338843840,1726938632622,-152.6,0.0001299,2]
[338843841,1726938632632,-152.6,0.0001299,2]
[338843842,1726938632641,-152.6,0.0001299,2]
[338843843,1726938632651,-152.6,0.0001299,2]
[338843844,1726938632661,-152.6,0.0001299,2]
[338843845,1726938632671,-152.6,0.0001299,2]
[338843846,1726938632680,-152.6,0.0001299,2]
[338843847,1726938632690,-152.6,0.0001299,2]
[338843848,1726938632701,-152.6,0.0001299,2]
[338843849,1726938632710,-2513.17960788,0.00013,2]
[338843850,1726938632721,-14579.83457784,0.00013,2]
[338843851,1726938632734,-549.52917014,0.00013,2]
[338843852,1726938632745,-9367.06642511,0.00013,2]
[338843853,1726938632757,-664.57727663,0.00013,2]
[338843854,1726938632768,-4212.6311127,0.00013,2]
[338843855,1726938632780,-2045.75766083,0.00013,2]
[338843856,1726938632792,-5221.07153573,0.00013,2]
[338843857,1726938632805,-22658.45920343,0.00013,2]
[338843858,1726938632816,-1412.14945512,0.00013,2]
[338843859,1726938632829,-737.5985368,0.00013,2]
[338843860,1726938632840,-7171.924979,0.00013,2]
[338843861,1726938632852,-351.89855854,0.00013,2]
[338843862,1726938632863,-562.21440665,0.00013,2]
[338843863,1726938632875,-2498.3477175,0.00013,2]
[338843864,1726938632886,-1881.40812481,0.00013,2]
[338843865,1726938632898,-3070.66711255,0.00013,2]
[338843866,1726938632909,-983.93,0.00013,2]
[338843867,1726938632921,-5395.38119057,0.00013,2]
[338843868,1726938632933,-793.35,0.00013,2]
[338843869,1726938632945,-2732.47067848,0.00013,2]
[338843870,1726938632956,-5945.23256961,0.00013,2]
[338843871,1726938632971,-295.33202042,0.00013,2]
[338843872,1726938632982,-1974.18309637,0.00013,2]
[338843873,1726938632993,-750.26546194,0.00013,2]
[338843874,1726938633005,-1266.60175907,0.00013,2]
[338843878,1726938638216,-500.0,0.00012873,2]
[338843879,1726938638226,-173.64058844,0.00012933,2]
[338843880,1726938638237,-840.99378392,0.00013,2]
[338843881,1726938638248,-929.30964568,0.00013,2]
[338843882,1726938638272,-452.64,0.00013,2]
[338843883,1726938638283,-566.53508846,0.00013,2]
[338843884,1726938638294,-3181.070885,0.00013,2]
[338843885,1726938638305,-82159.20723044,0.00013,2]
[338843886,1726938638315,-1765.0,0.00013,2]
[338843887,1726938638326,-98294.27128767,0.00013,2]
[338843888,1726938638343,-322.33920032,0.0001289,2]
[338843889,1726938638351,-1599.61370668,0.00013,2]
[338843890,1726938638362,-451.57864314,0.00013,2]
[338843891,1726938638373,-880.12,0.00013,2]
[338843892,1726938638386,-385.84514541,0.00013,2]
[338843893,1726938638398,-308.42346545,0.00013,2]
[338843894,1726938638409,-645.49882476,0.00013,2]
[338843895,1726938638421,-6756.10214935,0.00013,2]
[338843896,1726938638432,-630457.22202048,0.00013,2]
[338843897,1726938638443,-348.23005832,0.00013,2]
[338843898,1726938638458,-15249.1762581,0.00013,2]
[338843899,1726938638469,-5127.60000001,0.00013,2]
[338843900,1726938638480,-1850.0,0.00013,2]
[338843901,1726938638497,-36923.19099976,0.00013,2]
[338843902,1726938638508,-14748.76972363,0.00013,2]
[338843903,1726938638519,-270078.21050193,0.00013,2]
[338843904,1726938638528,-519671.06495729,0.00013,2]
[338843905,1726938638539,-1556.46944238,0.00013,2]
[338843906,1726938638557,-1109.26027776,0.00013,2]
[338843908,1726938638568,-4936.4916975,0.00013,2]
[338843910,1726938638578,-83579.05201514,0.00013,2]
[338843912,1726938638589,-2397.52493888,0.00013,2]
[338843915,1726938638600,-960688.28600703,0.00013,2]
[338843917,1726938638611,-1372.2,0.00013,2]
[338843919,1726938638621,-941.43031319,0.00013,2]
[338844078,1726938640099,-796.28249317,0.00013,2]
[338844080,1726938640110,-331.44623355,0.00013,2]
[338844083,1726938640121,-985.8689958,0.00013,2]
[338844085,1726938640133,-714.13926867,0.00013,2]
[338844087,1726938640144,-1001.60210072,0.00013,2]
[338844090,1726938640164,-489.17891229,0.00013,2]
[338844092,1726938640175,-2400.47475159,0.00013,2]
[338844094,1726938640186,-616.89321857,0.00013,2]
[338844096,1726938640196,-1986.15335335,0.00013,2]
[338844103,1726938640255,-818.06656972,0.00013,2]
[338844105,1726938640266,-15122.18966287,0.00013,2]
[338844108,1726938640284,-323.21934277,0.00013,2]
[338844110,1726938640295,-11809.42168032,0.00013,2]
[338844112,1726938640306,-558.89350208,0.00013,2]
[338844114,1726938640317,-540.12050521,0.00013,2]
[338844116,1726938640328,-1217.27,0.00013,2]
[338844118,1726938640340,-13563.56734335,0.00013,2]
[338844121,1726938640351,-1996.96743644,0.00013,2]
[338844123,1726938640363,-1370.37733886,0.00013,2]
[338844125,1726938640373,-681.43362743,0.00013,2]
[338844127,1726938640385,-31942.32762992,0.00013,2]
[338844130,1726938640403,-2976.28006182,0.00013,2]
[338844132,1726938640414,-2132.26496107,0.00013,2]
[338844134,1726938640426,-2531.38535736,0.00013,2]
[338844136,1726938640437,-369.5859132,0.00013,2]
[338844138,1726938640448,-640.8176,0.00013,2]
[338844140,1726938640463,-927.22751103,0.00013,2]
[338844142,1726938640473,-156894.73642967,0.00013,2]
[338844144,1726938640488,-1048.582763,0.00013,2]
[338844146,1726938640498,-846.52210567,0.00013,2]
[338844148,1726938640509,-4503.46066958,0.00013,2]
[338844150,1726938640521,-303.35499935,0.00013,2]
[338844153,1726938640531,-947.895,0.00013,2]
[338844155,1726938640543,-9876.60459717,0.00013,2]
[338844157,1726938640553,-511.70455756,0.00013,2]
[338844159,1726938640564,-407.72315527,0.00013,2]
[338844161,1726938640575,-1599.16214564,0.00013,2]
[338844163,1726938640586,-9894.76560632,0.00013,2]
[338844165,1726938640596,-424.27183702,0.00013,2]
[338844167,1726938640607,-1637.29710056,0.00013,2]
[338844169,1726938640617,-982.24203917,0.00013,2]
[338844171,1726938640628,-662.68309162,0.00013,2]
[338844173,1726938640638,-8602.52214844,0.00013,2]
[338844175,1726938640649,-384.644286,0.00013,2]
[338844177,1726938640664,-396.63944186,0.00013,2]
[338844179,1726938640675,-2586.02150144,0.00013,2]
[338844181,1726938640686,-745565.1906637,0.00013,2]
[338844184,1726938640696,-215039.92691491,0.00013,2]
[338844186,1726938640707,-344475.0874631,0.00013,2]
[338844188,1726938640718,-8289.3,0.00013,2]
[338844190,1726938640729,-20973.64934183,0.00013,2]
[338844423,1726938643168,-9843.08891014,0.00013,2]
[338844424,1726938643180,-1838.78,0.00013,2]
[338844425,1726938643192,-1598.31428799,0.00013,2]
[338844427,1726938643203,-735.896,0.00013,2]
[338844428,1726938643214,-1589.224958,0.00013,2]
[338844429,1726938643225,-1113.8701207,0.00013,2]
[338844430,1726938643240,-26440.5105801,0.00013,2]
[338844431,1726938643252,-20210.40040686,0.00013,2]
[338844432,1726938643263,-2386.96809444,0.00013,2]
[338844433,1726938643274,-365.43490797,0.00013,2]
[338844434,1726938643286,-1323.34911343,0.00013,2]
[338844435,1726938643301,-7489.85810752,0.00013,2]
[338844436,1726938643312,-1271.68666769,0.00013,2]
[338844437,1726938643324,-1390.9712905,0.00013,2]
[338844438,1726938643336,-737.99988251,0.00013,2]
[338844439,1726938643347,-409.34192602,0.00013,2]
[338844440,1726938643359,-7488.03175676,0.00013,2]
[338844441,1726938643373,-298.93134934,0.00013,2]
[338844442,1726938643388,-1789.29207492,0.00013,2]
[338844443,1726938643400,-10988.3773015,0.00013,2]
[338844444,1726938643418,-279.55779706,0.00013,2]
[338844445,1726938643429,-677.73625,0.00013,2]
[338844446,1726938643440,-5400.0,0.00013,2]
[338844452,1726938646135,-675.75650086,0.00013,2]
[338844453,1726938646147,-587.1334076,0.00013,2]
[338844454,1726938646159,-17189.36167256,0.00013,2]
[338844455,1726938646170,-3919.50255157,0.00013,2]
[338844456,1726938646181,-618.3903605,0.00013,2]
[338844457,1726938646195,-10391.97917367,0.00013,2]
[338844458,1726938646208,-493.70431179,0.00013,2]
[338844459,1726938646222,-674.79429573,0.00013,2]
[338844460,1726938646233,-557.8322401,0.00013,2]
[338844461,1726938646244,-685.11662691,0.00013,2]
[338844462,1726938646255,-673.53625107,0.00013,2]
[338844463,1726938646394,-6491.30359102,0.00013,2]
[338844464,1726938646405,-8087.42770433,0.00013,2]
[338844465,1726938646416,-15651.80138247,0.00013,2]
[338844466,1726938646427,-635.75,0.00013,2]
[338844467,1726938646444,-312.64,0.00013,2]
[338844468,1726938646459,-5022.72191446,0.00013,2]
[338844469,1726938646471,-481.61185414,0.00013,2]
[338844470,1726938646484,-1269.0,0.00013,2]
[338844471,1726938646497,-428.95750769,0.00013,2]
[338844472,1726938646508,-2133.07562019,0.00013,2]
[338844473,1726938646519,-4369.62043342,0.00013,2]
[338844474,1726938646531,-879.9737992,0.00013,2]
[338844475,1726938646553,-438.217861,0.00013,2]
[338844477,1726938646564,-34567.01136628,0.00013,2]
[338844478,1726938646576,-43150.4207702,0.00013,2]
[338844479,1726938646589,-83844.72194806,0.00013,2]
[338844480,1726938646600,-12210.17717845,0.00013,2]
[338844481,1726938646615,-10152.93128189,0.00013,2]
[338844482,1726938646628,-10164.3352765,0.00013,2]
[338844483,1726938646639,-2283.42218229,0.00013,2]
[338844484,1726938646651,-550.0,0.00013,2]
[338844485,1726938646662,-4050.58204498,0.00013,2]
[338844486,1726938646673,-3690.46625153,0.00013,2]
[338844487,1726938646684,-95603.46368482,0.00013,2]
[338844488,1726938646695,-117698.75954279,0.00013,2]
[338844489,1726938646706,-375.94454806,0.00013,2]
[338844490,1726938646717,-2615.29685025,0.00013,2]
[338844491,1726938646728,-2481.06096,0.00013,2]
[338844492,1726938646739,-3225.84215097,0.00013,2]
[338844493,1726938646752,-6278.67110128,0.00013,2]
[338844494,1726938646764,-946.21399857,0.00013,2]
[338844495,1726938646776,-626.08111507,0.00013,2]
[338844496,1726938646790,-8888.09487666,0.00013,2]
[338844497,1726938646805,-36801.39333077,0.00013,2]
[338844498,1726938646817,-400.0,0.00013,2]
[338844499,1726938646830,-1401.42201098,0.00013,2]
[338844500,1726938646843,-442.824,0.00013,2]
[338844501,1726938646855,-432.00902886,0.00013,2]
[338844502,1726938646865,-805.58226419,0.00013,2]
[338844503,1726938646876,-274.50931672,0.00013,2]